[Event "Titled Tuesday Blitz June 6 Late 2023"]
[White "Belov, Alexei"]
[Black "Vega Gutierrez, Sabrina"]
[WhiteFideId "4128206"]
[BlackFideId "2219026"]
[WhiteElo "2634"]
[BlackElo "2209"]
[Result "1/2-1/2"]
[Round "5"]
[TimeControl "180+2"]
[Date "2023.06.07"]
[WhiteClock "0:00:52"]
[BlackClock "0:00:11"]
[Board "104"]

1. e4 {[%clk 0:03:00]}  c5 {[%clk 0:02:59]} 2. Nf3 {[%clk 0:03:01]}  e6 {[%clk 0:02:59]} 3. d4 {[%clk 0:03:01]}  cxd4 {[%clk 0:03:00]} 4. Nxd4 {[%clk 0:03:01]}  Nf6 {[%clk 0:03:01]} 5. Nc3 {[%clk 0:03:00]}  Nc6 {[%clk 0:03:01]} 6. Ndb5 {[%clk 0:02:59]}  d6 {[%clk 0:03:01]} 7. Bf4 {[%clk 0:02:59]}  e5 {[%clk 0:03:01]} 8. Bg5 {[%clk 0:03:00]}  a6 {[%clk 0:03:02]} 9. Na3 {[%clk 0:02:59]}  b5 {[%clk 0:03:03]} 10. Nd5 {[%clk 0:03:00]}  Be7 {[%clk 0:03:03]} 11. Bxf6 {[%clk 0:03:00]}  Bxf6 {[%clk 0:03:03]} 12. c3 {[%clk 0:03:01]}  Bg5 {[%clk 0:02:55]} 13. Nc2 {[%clk 0:03:01]}  Ne7 {[%clk 0:02:51]} 14. Nxe7 {[%clk 0:02:50]}  Qxe7 {[%clk 0:02:45]} 15. Nb4 {[%clk 0:02:49]}  O-O {[%clk 0:02:41]} 16. Nd5 {[%clk 0:02:48]}  Qb7 {[%clk 0:02:41]} 17. Be2 {[%clk 0:02:45]}  Be6 {[%clk 0:02:40]} 18. O-O {[%clk 0:02:39]}  Bxd5 {[%clk 0:02:23]} 19. Qxd5 {[%clk 0:02:35]}  Qxd5 {[%clk 0:02:23]} 20. exd5 {[%clk 0:02:36]}  e4 {[%clk 0:02:20]} 21. a4 {[%clk 0:02:34]}  bxa4 {[%clk 0:02:19]} 22. Rxa4 {[%clk 0:02:34]}  a5 {[%clk 0:02:16]} 23. Rxe4 {[%clk 0:02:33]}  Rfb8 {[%clk 0:01:19]} 24. b4 {[%clk 0:02:28]}  a4 {[%clk 0:01:02]} 25. Ra1 {[%clk 0:02:25]}  a3 {[%clk 0:01:03]} 26. Ra2 {[%clk 0:02:24]}  Bc1 {[%clk 0:01:00]} 27. Rc4 {[%clk 0:02:12]}  Bb2 {[%clk 0:00:59]} 28. Rc6 {[%clk 0:02:12]}  Rc8 {[%clk 0:00:57]} 29. c4 {[%clk 0:02:07]}  Re8 {[%clk 0:00:47]} 30. Kf1 {[%clk 0:02:06]}  Ra4 {[%clk 0:00:42]} 31. c5 {[%clk 0:02:01]}  Rxb4 {[%clk 0:00:34]} 32. Rxd6 {[%clk 0:02:01]}  Bd4 {[%clk 0:00:21]} 33. Rb6 {[%clk 0:02:00]}  Bxc5 {[%clk 0:00:19]} 34. Rxb4 {[%clk 0:01:56]}  Bxb4 {[%clk 0:00:20]} 35. f3 {[%clk 0:01:50]}  Kf8 {[%clk 0:00:19]} 36. Kf2 {[%clk 0:01:49]}  Rc8 {[%clk 0:00:19]} 37. Bb5 {[%clk 0:01:48]}  Ke7 {[%clk 0:00:18]} 38. Bc6 {[%clk 0:01:47]}  Kd6 {[%clk 0:00:18]} 39. Ke3 {[%clk 0:01:47]}  Rb8 {[%clk 0:00:18]} 40. Kd3 {[%clk 0:01:46]}  Bc5 {[%clk 0:00:18]} 41. Kc3 {[%clk 0:01:43]}  Rb1 {[%clk 0:00:18]} 42. h3 {[%clk 0:01:37]}  h5 {[%clk 0:00:17]} 43. Rc2 {[%clk 0:01:28]}  h4 {[%clk 0:00:16]} 44. Kc4 {[%clk 0:01:26]}  Rb2 {[%clk 0:00:13]} 45. Kc3 {[%clk 0:01:26]}  Rb1 {[%clk 0:00:10]} 46. Ra2 {[%clk 0:01:25]}  f6 {[%clk 0:00:09]} 47. Kd3 {[%clk 0:01:21]}  Rb2 {[%clk 0:00:06]} 48. Rxb2 {[%clk 0:01:21]}  axb2 {[%clk 0:00:06]} 49. Kc2 {[%clk 0:01:21]}  Bd4 {[%clk 0:00:07]} 50. Kb1 {[%clk 0:01:20]}  Ke5 {[%clk 0:00:07]} 51. Kc2 {[%clk 0:01:20]}  Kd6 {[%clk 0:00:07]} 52. Bb7 {[%clk 0:01:20]}  g5 {[%clk 0:00:07]} 53. Kb1 {[%clk 0:01:18]}  Be5 {[%clk 0:00:07]} 54. Bc6 {[%clk 0:01:17]}  Kc5 {[%clk 0:00:07]} 55. Kc2 {[%clk 0:01:17]}  Kd4 {[%clk 0:00:07]} 56. Kxb2 {[%clk 0:01:13]}  Ke3+ {[%clk 0:00:08]} 57. Kc2 {[%clk 0:01:12]}  Kf2 {[%clk 0:00:08]} 58. f4 {[%clk 0:01:11]}  Bxf4 {[%clk 0:00:08]} 59. d6 {[%clk 0:01:06]}  Bxd6 {[%clk 0:00:08]} 60. Kd3 {[%clk 0:01:07]}  Be5 {[%clk 0:00:04]} 61. Bf3 {[%clk 0:01:05]}  Kg3 {[%clk 0:00:04]} 62. Ke4 {[%clk 0:01:05]}  Kf2 {[%clk 0:00:04]} 63. Kf5 {[%clk 0:01:05]}  Kg3 {[%clk 0:00:05]} 64. Be4 {[%clk 0:01:05]}  Bb2 {[%clk 0:00:06]} 65. Kg6 {[%clk 0:01:01]}  Bc3 {[%clk 0:00:07]} 66. Bf3 {[%clk 0:01:01]}  Kf4 {[%clk 0:00:07]} 67. Kh5 {[%clk 0:00:59]}  f5 {[%clk 0:00:07]} 68. Be2 {[%clk 0:00:58]}  Bb2 {[%clk 0:00:06]} 69. Bf3 {[%clk 0:00:58]}  Bc1 {[%clk 0:00:07]} 70. Be2 {[%clk 0:00:58]}  Kg3 {[%clk 0:00:07]} 71. Bf3 {[%clk 0:00:59]}  Bd2 {[%clk 0:00:08]} 72. Kg6 {[%clk 0:00:58]}  g4 {[%clk 0:00:08]} 73. hxg4 {[%clk 0:00:58]}  fxg4 {[%clk 0:00:08]} 74. Be4 {[%clk 0:00:57]}  Kf4 {[%clk 0:00:07]} 75. Bd5 {[%clk 0:00:57]}  Kg3 {[%clk 0:00:07]} 76. Kh5 {[%clk 0:00:56]}  Be3 {[%clk 0:00:06]} 77. Bc6 {[%clk 0:00:55]}  Bc1 {[%clk 0:00:07]} 78. Bb7 {[%clk 0:00:54]}  h3 {[%clk 0:00:07]} 79. gxh3 {[%clk 0:00:54]}  gxh3 {[%clk 0:00:08]} 80. Kg6 {[%clk 0:00:54]}  h2 {[%clk 0:00:08]} 81. Kf5 {[%clk 0:00:53]}  Kf2 {[%clk 0:00:09]} 82. Kg4 {[%clk 0:00:53]}  Kg1 {[%clk 0:00:10]} 83. Kh3 {[%clk 0:00:53]}  h1=Q+ {[%clk 0:00:11]} 84. Bxh1 {[%clk 0:00:52]} 1/2-1/2


[Site "https://www.chess.com"]

[Event "Titled Tuesday Blitz June 6 Late 2023"]
[White "Moore, Nicholas"]
[Black "ATM622"]
[WhiteFideId "4303709"]
[WhiteElo "2425"]
[BlackElo "2585"]
[Result "0-1"]
[Round "5"]
[TimeControl "180+2"]
[Date "2023.06.07"]
[WhiteClock "0:00:13"]
[BlackClock "0:00:47"]
[Board "106"]

1. c4 {[%clk 0:03:00]}  e5 {[%clk 0:02:58]} 2. g3 {[%clk 0:02:58]}  f5 {[%clk 0:02:58]} 3. d4 {[%clk 0:02:56]}  e4 {[%clk 0:02:58]} 4. Bg2 {[%clk 0:02:53]}  Nf6 {[%clk 0:02:58]} 5. Bg5 {[%clk 0:02:52]}  Bb4+ {[%clk 0:02:56]} 6. Kf1 {[%clk 0:02:47]}  O-O {[%clk 0:02:53]} 7. h4 {[%clk 0:02:40]}  d5 {[%clk 0:02:50]} 8. Bxf6 {[%clk 0:02:26]}  Qxf6 {[%clk 0:02:47]} 9. Qb3 {[%clk 0:02:25]}  Na6 {[%clk 0:02:33]} 10. cxd5 {[%clk 0:02:12]}  Qxd4 {[%clk 0:02:28]} 11. a3 {[%clk 0:02:09]}  Bc5 {[%clk 0:02:11]} 12. e3 {[%clk 0:02:08]}  Qf6 {[%clk 0:02:05]} 13. Ne2 {[%clk 0:02:02]}  Bd6 {[%clk 0:02:02]} 14. Nbc3 {[%clk 0:01:56]}  Nc5 {[%clk 0:02:00]} 15. Qc2 {[%clk 0:01:55]}  Nd3 {[%clk 0:01:56]} 16. Rd1 {[%clk 0:01:51]}  Bd7 {[%clk 0:01:54]} 17. Nc1 {[%clk 0:01:44]}  Ne5 {[%clk 0:01:50]} 18. N1e2 {[%clk 0:01:39]}  h6 {[%clk 0:01:48]} 19. h5 {[%clk 0:01:39]}  c6 {[%clk 0:01:43]} 20. Nf4 {[%clk 0:01:35]}  c5 {[%clk 0:01:40]} 21. Qb3 {[%clk 0:01:19]}  Rab8 {[%clk 0:01:35]} 22. Ne6 {[%clk 0:01:18]}  Bxe6 {[%clk 0:01:32]} 23. dxe6 {[%clk 0:01:18]}  c4 {[%clk 0:01:32]} 24. Qa4 {[%clk 0:00:33]}  Qxe6 {[%clk 0:01:30]} 25. Qxa7 {[%clk 0:00:33]}  b5 {[%clk 0:01:24]} 26. Qa6 {[%clk 0:00:31]}  Rfd8 {[%clk 0:01:22]} 27. Nxb5 {[%clk 0:00:31]}  Nd3 {[%clk 0:01:19]} 28. Nd4 {[%clk 0:00:28]}  Qf7 {[%clk 0:01:18]} 29. Nc6 {[%clk 0:00:25]}  Kh8 {[%clk 0:01:01]} 30. Nxd8 {[%clk 0:00:24]}  Rxd8 {[%clk 0:01:01]} 31. Rd2 {[%clk 0:00:17]}  Be5 {[%clk 0:00:55]} 32. Ke2 {[%clk 0:00:16]}  Bxb2 {[%clk 0:00:51]} 33. Rb1 {[%clk 0:00:12]}  c3 {[%clk 0:00:49]} 34. Rc2 {[%clk 0:00:13]}  Qa2 {[%clk 0:00:47]} 0-1


[Site "https://www.chess.com"]

[Event "Titled Tuesday Blitz June 6 Late 2023"]
[White "Prado Lobo, Jonas"]
[Black "Amanov, Zhanibek"]
[WhiteFideId "32050666"]
[BlackFideId "13700189"]
[WhiteElo "2322"]
[BlackElo "2134"]
[Result "1-0"]
[Round "5"]
[TimeControl "180+2"]
[Date "2023.06.07"]
[WhiteClock "0:00:05"]
[BlackClock "0:00:03"]
[Board "108"]

1. d4 {[%clk 0:03:00]}  d5 {[%clk 0:02:57]} 2. Nc3 {[%clk 0:03:00]}  c5 {[%clk 0:02:57]} 3. e4 {[%clk 0:02:59]}  dxe4 {[%clk 0:02:50]} 4. d5 {[%clk 0:02:54]}  Nf6 {[%clk 0:02:50]} 5. Bf4 {[%clk 0:02:45]}  a6 {[%clk 0:02:46]} 6. Nge2 {[%clk 0:02:40]}  b5 {[%clk 0:02:41]} 7. Ng3 {[%clk 0:02:39]}  Bb7 {[%clk 0:02:41]} 8. Ngxe4 {[%clk 0:02:31]}  Nxe4 {[%clk 0:02:31]} 9. Nxe4 {[%clk 0:02:32]}  Qxd5 {[%clk 0:02:28]} 10. Qxd5 {[%clk 0:02:32]}  Bxd5 {[%clk 0:02:29]} 11. Nxc5 {[%clk 0:02:30]}  e5 {[%clk 0:02:25]} 12. Be3 {[%clk 0:02:19]}  Nd7 {[%clk 0:02:14]} 13. O-O-O {[%clk 0:02:14]}  Bxc5 {[%clk 0:02:10]} 14. Bxc5 {[%clk 0:02:11]}  Bxa2 {[%clk 0:02:01]} 15. Bd6 {[%clk 0:01:54]}  Be6 {[%clk 0:01:49]} 16. Bd3 {[%clk 0:01:43]}  f6 {[%clk 0:01:36]} 17. Be4 {[%clk 0:01:36]}  Ra7 {[%clk 0:01:35]} 18. f4 {[%clk 0:01:32]}  exf4 {[%clk 0:01:31]} 19. Bxf4 {[%clk 0:01:33]}  Kf7 {[%clk 0:01:25]} 20. Rd6 {[%clk 0:01:29]}  Nc5 {[%clk 0:01:21]} 21. Bf3 {[%clk 0:01:25]}  Rc8 {[%clk 0:01:11]} 22. Re1 {[%clk 0:01:23]}  Rd7 {[%clk 0:00:53]} 23. Rexe6 {[%clk 0:01:18]}  Nxe6 {[%clk 0:00:42]} 24. Rxd7+ {[%clk 0:01:18]}  Ke8 {[%clk 0:00:43]} 25. Ra7 {[%clk 0:00:56]}  Nxf4 {[%clk 0:00:42]} 26. Rxg7 {[%clk 0:00:56]}  Nd3+ {[%clk 0:00:33]} 27. Kb1 {[%clk 0:00:56]}  Ne5 {[%clk 0:00:34]} 28. Be4 {[%clk 0:00:47]}  Rc4 {[%clk 0:00:30]} 29. Bxh7 {[%clk 0:00:38]}  Rf4 {[%clk 0:00:29]} 30. h3 {[%clk 0:00:24]}  a5 {[%clk 0:00:14]} 31. Ra7 {[%clk 0:00:20]}  Rf1+ {[%clk 0:00:13]} 32. Ka2 {[%clk 0:00:20]}  Rf2 {[%clk 0:00:14]} 33. Be4 {[%clk 0:00:20]}  Re2 {[%clk 0:00:14]} 34. Bd5 {[%clk 0:00:15]}  Rxc2 {[%clk 0:00:08]} 35. Rxa5 {[%clk 0:00:15]}  Rd2 {[%clk 0:00:07]} 36. Ba8 {[%clk 0:00:14]}  Rxb2+ {[%clk 0:00:04]} 37. Kxb2 {[%clk 0:00:12]}  Nc4+ {[%clk 0:00:05]} 38. Kc3 {[%clk 0:00:12]}  Nxa5 {[%clk 0:00:06]} 39. Bd5 {[%clk 0:00:10]}  Ke7 {[%clk 0:00:02]} 40. h4 {[%clk 0:00:09]}  Kd6 {[%clk 0:00:02]} 41. h5 {[%clk 0:00:08]}  Kxd5 {[%clk 0:00:02]} 42. h6 {[%clk 0:00:08]}  Ke6 {[%clk 0:00:03]} 43. h7 {[%clk 0:00:08]}  Nc6 {[%clk 0:00:04]} 44. h8=Q {[%clk 0:00:08]}  Ne7 {[%clk 0:00:04]} 45. Qh3+ {[%clk 0:00:08]}  Kf7 {[%clk 0:00:03]} 46. Kb4 {[%clk 0:00:09]}  Nc6+ {[%clk 0:00:03]} 47. Kxb5 {[%clk 0:00:09]}  Ne5 {[%clk 0:00:04]} 48. Kc5 {[%clk 0:00:09]}  Ng6 {[%clk 0:00:04]} 49. Qd7+ {[%clk 0:00:08]}  Kg8 {[%clk 0:00:02]} 50. Kd6 {[%clk 0:00:08]}  Nf8 {[%clk 0:00:02]} 51. Qe7 {[%clk 0:00:07]}  Ng6 {[%clk 0:00:02]} 52. Qxf6 {[%clk 0:00:06]}  Nf8 {[%clk 0:00:03]} 53. Ke7 {[%clk 0:00:06]}  Nh7 {[%clk 0:00:03]} 54. Qf7+ {[%clk 0:00:06]}  Kh8 {[%clk 0:00:04]} 55. g4 {[%clk 0:00:05]}  Ng5 {[%clk 0:00:01]} 56. Qf6+ {[%clk 0:00:05]}  Kh7 {[%clk 0:00:02]} 57. Qxg5 {[%clk 0:00:05]}  Kh8 {[%clk 0:00:03]} 58. Kf7 {[%clk 0:00:05]} 1-0


[Site "https://www.chess.com"]

[Event "Titled Tuesday Blitz June 6 Late 2023"]
[White "Kokoszczynski, Jan"]
[Black "Pace, Christopher"]
[WhiteFideId "1174460"]
[BlackFideId "2610167"]
[WhiteElo "2139"]
[BlackElo "2327"]
[Result "1-0"]
[Round "5"]
[TimeControl "180+2"]
[Date "2023.06.07"]
[WhiteClock "0:00:03"]
[BlackClock "0:00:04"]
[Board "117"]

1. d4 {[%clk 0:03:00]}  Nf6 {[%clk 0:02:58]} 2. c4 {[%clk 0:03:00]}  e5 {[%clk 0:02:56]} 3. dxe5 {[%clk 0:02:59]}  Ng4 {[%clk 0:02:56]} 4. Nf3 {[%clk 0:02:53]}  Bc5 {[%clk 0:02:55]} 5. e3 {[%clk 0:02:53]}  Nc6 {[%clk 0:02:56]} 6. Be2 {[%clk 0:02:48]}  O-O {[%clk 0:02:55]} 7. Nbd2 {[%clk 0:02:45]}  Re8 {[%clk 0:02:53]} 8. O-O {[%clk 0:02:45]}  Ngxe5 {[%clk 0:02:53]} 9. b3 {[%clk 0:02:41]}  Qf6 {[%clk 0:02:35]} 10. Rb1 {[%clk 0:02:22]}  Qg6 {[%clk 0:02:13]} 11. Bb2 {[%clk 0:02:09]}  Nd3 {[%clk 0:02:07]} 12. Ba1 {[%clk 0:01:59]}  d6 {[%clk 0:02:07]} 13. Nd4 {[%clk 0:01:23]}  Nf4 {[%clk 0:01:51]} 14. Bf3 {[%clk 0:01:11]}  Bxd4 {[%clk 0:01:44]} 15. exd4 {[%clk 0:01:08]}  Bh3 {[%clk 0:01:41]} 16. g3 {[%clk 0:01:00]}  Bxf1 {[%clk 0:01:36]} 17. Nxf1 {[%clk 0:01:00]}  Nh3+ {[%clk 0:01:30]} 18. Kg2 {[%clk 0:00:59]}  Ng5 {[%clk 0:01:31]} 19. Ne3 {[%clk 0:00:59]}  Nxf3 {[%clk 0:01:27]} 20. Kxf3 {[%clk 0:01:00]}  Qe4+ {[%clk 0:01:08]} 21. Ke2 {[%clk 0:01:00]}  f5 {[%clk 0:01:07]} 22. d5 {[%clk 0:00:49]}  Ne5 {[%clk 0:01:06]} 23. Bxe5 {[%clk 0:00:41]}  Rxe5 {[%clk 0:01:06]} 24. Qd3 {[%clk 0:00:31]}  Qg4+ {[%clk 0:01:02]} 25. Kd2 {[%clk 0:00:29]}  Qf3 {[%clk 0:01:02]} 26. Qe2 {[%clk 0:00:29]}  Qxe2+ {[%clk 0:00:54]} 27. Kxe2 {[%clk 0:00:29]}  g5 {[%clk 0:00:53]} 28. Kd3 {[%clk 0:00:29]}  Rae8 {[%clk 0:00:52]} 29. Rg1 {[%clk 0:00:28]}  Kf7 {[%clk 0:00:48]} 30. h4 {[%clk 0:00:26]}  h6 {[%clk 0:00:47]} 31. hxg5 {[%clk 0:00:25]}  hxg5 {[%clk 0:00:48]} 32. Rh1 {[%clk 0:00:25]}  Kg6 {[%clk 0:00:47]} 33. g4 {[%clk 0:00:23]}  f4 {[%clk 0:00:39]} 34. Nc2 {[%clk 0:00:21]}  Re2 {[%clk 0:00:34]} 35. Nd4 {[%clk 0:00:21]}  Rxf2 {[%clk 0:00:26]} 36. Nf5 {[%clk 0:00:21]}  Ree2 {[%clk 0:00:20]} 37. Rh6+ {[%clk 0:00:20]}  Kf7 {[%clk 0:00:21]} 38. Rh7+ {[%clk 0:00:20]}  Kg8 {[%clk 0:00:21]} 39. Rxc7 {[%clk 0:00:18]}  Rxa2 {[%clk 0:00:12]} 40. Nh6+ {[%clk 0:00:07]}  Kf8 {[%clk 0:00:12]} 41. Ke4 {[%clk 0:00:08]}  Rae2+ {[%clk 0:00:10]} 42. Kf5 {[%clk 0:00:08]}  Re7 {[%clk 0:00:07]} 43. Rc8+ {[%clk 0:00:06]}  Kg7 {[%clk 0:00:08]} 44. Kxg5 {[%clk 0:00:05]}  Re5+ {[%clk 0:00:07]} 45. Nf5+ {[%clk 0:00:06]}  Kf7 {[%clk 0:00:07]} 46. Rc7+ {[%clk 0:00:06]}  Ke8 {[%clk 0:00:08]} 47. Rxb7 {[%clk 0:00:04]}  f3 {[%clk 0:00:07]} 48. c5 {[%clk 0:00:02]}  dxc5 {[%clk 0:00:06]} 49. d6 {[%clk 0:00:03]}  Rd5 {[%clk 0:00:06]} 50. Kf6 {[%clk 0:00:03]}  Rfd2 {[%clk 0:00:04]} 51. Ke6 {[%clk 0:00:03]}  Kd8 {[%clk 0:00:04]} 52. Rb8# {[%clk 0:00:03]} 1-0


[Site "https://www.chess.com"]

[Event "Titled Tuesday Blitz June 6 Late 2023"]
[White "szachmistrz2500"]
[Black "Gonzalez Vega, Alejandro"]
[BlackFideId "3510042"]
[WhiteElo "2455"]
[BlackElo "2319"]
[Result "1-0"]
[Round "5"]
[TimeControl "180+2"]
[Date "2023.06.07"]
[WhiteClock "0:00:21"]
[BlackClock "0:00:01"]
[Board "119"]

1. d4 {[%clk 0:03:00]}  d5 {[%clk 0:02:58]} 2. c4 {[%clk 0:03:00]}  e6 {[%clk 0:02:54]} 3. Nf3 {[%clk 0:03:00]}  Nf6 {[%clk 0:02:53]} 4. Nc3 {[%clk 0:02:56]}  Bb4 {[%clk 0:02:51]} 5. a3 {[%clk 0:02:49]}  Bxc3+ {[%clk 0:02:46]} 6. bxc3 {[%clk 0:02:50]}  c5 {[%clk 0:02:46]} 7. Bg5 {[%clk 0:02:46]}  Nbd7 {[%clk 0:02:40]} 8. cxd5 {[%clk 0:02:43]}  exd5 {[%clk 0:02:38]} 9. e3 {[%clk 0:02:42]}  Qa5 {[%clk 0:02:33]} 10. Qb3 {[%clk 0:02:35]}  c4 {[%clk 0:02:19]} 11. Qb4 {[%clk 0:02:33]}  Qxb4 {[%clk 0:02:16]} 12. axb4 {[%clk 0:02:34]}  Ne4 {[%clk 0:02:16]} 13. Ra3 {[%clk 0:02:30]}  b6 {[%clk 0:01:52]} 14. Bf4 {[%clk 0:02:23]}  Ke7 {[%clk 0:01:39]} 15. Nd2 {[%clk 0:02:22]}  f5 {[%clk 0:01:28]} 16. f3 {[%clk 0:02:13]}  Nxd2 {[%clk 0:01:17]} 17. Kxd2 {[%clk 0:02:13]}  Bb7 {[%clk 0:01:17]} 18. Be2 {[%clk 0:02:07]}  h6 {[%clk 0:01:15]} 19. h4 {[%clk 0:02:06]}  a6 {[%clk 0:01:01]} 20. g4 {[%clk 0:01:56]}  fxg4 {[%clk 0:00:57]} 21. fxg4 {[%clk 0:01:57]}  Nf6 {[%clk 0:00:57]} 22. Bf3 {[%clk 0:01:56]}  Rhe8 {[%clk 0:00:46]} 23. Be5 {[%clk 0:01:53]}  Kf8 {[%clk 0:00:37]} 24. g5 {[%clk 0:01:45]}  Nd7 {[%clk 0:00:34]} 25. Bf4 {[%clk 0:01:44]}  hxg5 {[%clk 0:00:30]} 26. hxg5 {[%clk 0:01:44]}  Ke7 {[%clk 0:00:28]} 27. Rh7 {[%clk 0:01:38]}  Rg8 {[%clk 0:00:27]} 28. Ra1 {[%clk 0:01:37]}  a5 {[%clk 0:00:24]} 29. bxa5 {[%clk 0:01:36]}  Rxa5 {[%clk 0:00:22]} 30. Rb1 {[%clk 0:01:01]}  Ra2+ {[%clk 0:00:21]} 31. Ke1 {[%clk 0:01:01]}  Bc6 {[%clk 0:00:17]} 32. Bg4 {[%clk 0:00:59]}  b5 {[%clk 0:00:16]} 33. Rh2 {[%clk 0:00:50]}  Nb6 {[%clk 0:00:15]} 34. Rxa2 {[%clk 0:00:49]}  Na4 {[%clk 0:00:14]} 35. Kd2 {[%clk 0:00:41]}  Rh8 {[%clk 0:00:13]} 36. Raa1 {[%clk 0:00:37]}  Rh4 {[%clk 0:00:10]} 37. Rg1 {[%clk 0:00:36]}  g6 {[%clk 0:00:08]} 38. Raf1 {[%clk 0:00:32]}  Nb2 {[%clk 0:00:07]} 39. Be5 {[%clk 0:00:31]}  Nd3 {[%clk 0:00:07]} 40. Rf6 {[%clk 0:00:27]}  Be8 {[%clk 0:00:06]} 41. Rb6 {[%clk 0:00:24]}  Nxe5 {[%clk 0:00:04]} 42. dxe5 {[%clk 0:00:24]}  Rh2+ {[%clk 0:00:04]} 43. Kd1 {[%clk 0:00:22]}  Kf8 {[%clk 0:00:01]} 44. Rf1+ {[%clk 0:00:21]} 1-0


[Site "https://www.chess.com"]

[Event "Titled Tuesday Blitz June 6 Late 2023"]
[White "Eidelman, Gabriel"]
[Black "Boder, Jan"]
[WhiteFideId "30910544"]
[BlackFideId "16243226"]
[WhiteElo "2451"]
[BlackElo "2241"]
[Result "1-0"]
[Round "5"]
[TimeControl "180+2"]
[Date "2023.06.07"]
[WhiteClock "0:01:07"]
[BlackClock "0:00:51"]
[Board "122"]

1. e3 {[%clk 0:02:52]}  e5 {[%clk 0:02:55]} 2. g3 {[%clk 0:02:51]}  Nf6 {[%clk 0:02:55]} 3. Bg2 {[%clk 0:02:50]}  d5 {[%clk 0:02:56]} 4. Ne2 {[%clk 0:02:48]}  Be7 {[%clk 0:02:47]} 5. O-O {[%clk 0:02:46]}  O-O {[%clk 0:02:47]} 6. c4 {[%clk 0:02:37]}  d4 {[%clk 0:02:45]} 7. exd4 {[%clk 0:02:38]}  exd4 {[%clk 0:02:46]} 8. d3 {[%clk 0:02:37]}  c5 {[%clk 0:02:46]} 9. Nd2 {[%clk 0:02:29]}  Nc6 {[%clk 0:02:47]} 10. Nf3 {[%clk 0:02:27]}  Re8 {[%clk 0:02:46]} 11. a3 {[%clk 0:02:25]}  a5 {[%clk 0:02:45]} 12. Nf4 {[%clk 0:02:22]}  Bf5 {[%clk 0:02:30]} 13. Re1 {[%clk 0:02:01]}  Qd7 {[%clk 0:02:29]} 14. Bd2 {[%clk 0:01:52]}  Bf8 {[%clk 0:02:24]} 15. Qc2 {[%clk 0:01:48]}  b6 {[%clk 0:02:12]} 16. Nh4 {[%clk 0:01:47]}  Bg6 {[%clk 0:02:05]} 17. Nhxg6 {[%clk 0:01:46]}  hxg6 {[%clk 0:02:05]} 18. Nd5 {[%clk 0:01:47]}  Nxd5 {[%clk 0:01:55]} 19. Bxd5 {[%clk 0:01:48]}  Rxe1+ {[%clk 0:01:56]} 20. Rxe1 {[%clk 0:01:47]}  Re8 {[%clk 0:01:57]} 21. Rxe8 {[%clk 0:01:35]}  Qxe8 {[%clk 0:01:58]} 22. Qa4 {[%clk 0:01:31]}  Qe2 {[%clk 0:01:50]} 23. Qxc6 {[%clk 0:01:25]}  Qxd2 {[%clk 0:01:48]} 24. Qe8 {[%clk 0:01:21]}  Qxd3 {[%clk 0:01:22]} 25. Qxf7+ {[%clk 0:01:14]}  Kh7 {[%clk 0:01:23]} 26. Qxf8 {[%clk 0:01:11]}  Qd1+ {[%clk 0:00:50]} 27. Kg2 {[%clk 0:01:11]}  d3 {[%clk 0:00:51]} 28. h4 {[%clk 0:01:07]} 1-0


[Site "https://www.chess.com"]

[Event "Titled Tuesday Blitz June 6 Late 2023"]
[White "Filgueira, Hernan"]
[Black "Arun, Siddharth"]
[WhiteFideId "101770"]
[BlackFideId "2079178"]
[WhiteElo "2363"]
[BlackElo "2356"]
[Result "1-0"]
[Round "5"]
[TimeControl "180+2"]
[Date "2023.06.07"]
[WhiteClock "0:01:41"]
[BlackClock "0:00:47"]
[Board "125"]

1. c4 {[%clk 0:02:59]}  c6 {[%clk 0:02:58]} 2. Nf3 {[%clk 0:02:58]}  d5 {[%clk 0:02:58]} 3. g3 {[%clk 0:02:58]}  Nf6 {[%clk 0:02:58]} 4. Bg2 {[%clk 0:02:58]}  e6 {[%clk 0:02:58]} 5. Qc2 {[%clk 0:02:56]}  dxc4 {[%clk 0:02:58]} 6. Qxc4 {[%clk 0:02:55]}  b5 {[%clk 0:02:58]} 7. Qc2 {[%clk 0:02:55]}  Bb7 {[%clk 0:02:58]} 8. O-O {[%clk 0:02:54]}  Nbd7 {[%clk 0:02:58]} 9. a4 {[%clk 0:02:54]}  a6 {[%clk 0:02:58]} 10. d3 {[%clk 0:02:54]}  Be7 {[%clk 0:02:55]} 11. Nbd2 {[%clk 0:02:51]}  O-O {[%clk 0:02:53]} 12. b3 {[%clk 0:02:50]}  c5 {[%clk 0:02:48]} 13. Bb2 {[%clk 0:02:49]}  Rc8 {[%clk 0:02:24]} 14. e4 {[%clk 0:02:46]}  Qc7 {[%clk 0:02:16]} 15. Rfc1 {[%clk 0:02:45]}  e5 {[%clk 0:02:11]} 16. Bh3 {[%clk 0:02:33]}  Qd6 {[%clk 0:02:03]} 17. axb5 {[%clk 0:02:28]}  axb5 {[%clk 0:02:02]} 18. Ra7 {[%clk 0:02:28]}  Bc6 {[%clk 0:01:49]} 19. Rca1 {[%clk 0:02:25]}  Bd8 {[%clk 0:01:40]} 20. Nh4 {[%clk 0:02:22]}  Bb6 {[%clk 0:01:36]} 21. Nf5 {[%clk 0:02:22]}  Qb8 {[%clk 0:01:28]} 22. Ne7+ {[%clk 0:02:22]}  Kh8 {[%clk 0:01:28]} 23. Nxc8 {[%clk 0:02:14]}  Rxc8 {[%clk 0:01:29]} 24. R7a2 {[%clk 0:02:11]}  Rd8 {[%clk 0:01:24]} 25. Bc3 {[%clk 0:02:07]}  c4 {[%clk 0:01:00]} 26. bxc4 {[%clk 0:02:05]}  Nc5 {[%clk 0:00:55]} 27. Ba5 {[%clk 0:01:58]}  Nxd3 {[%clk 0:00:53]} 28. Bxb6 {[%clk 0:01:57]}  Qxb6 {[%clk 0:00:53]} 29. c5 {[%clk 0:01:57]}  Nxc5 {[%clk 0:00:53]} 30. Bf1 {[%clk 0:01:52]}  Ncxe4 {[%clk 0:00:50]} 31. Nxe4 {[%clk 0:01:49]}  Nxe4 {[%clk 0:00:50]} 32. Rd1 {[%clk 0:01:45]}  Rxd1 {[%clk 0:00:47]} 33. Qxd1 {[%clk 0:01:43]}  Nc3 {[%clk 0:00:47]} 34. Qd6 {[%clk 0:01:41]} 1-0


[Site "https://www.chess.com"]

[Event "Titled Tuesday Blitz June 6 Late 2023"]
[White "Stachanczyk, Jacek"]
[Black "Graif, William"]
[WhiteFideId "1116657"]
[BlackFideId "2609835"]
[WhiteElo "2084"]
[BlackElo "2201"]
[Result "0-1"]
[Round "5"]
[TimeControl "180+2"]
[Date "2023.06.07"]
[WhiteClock "0:00:10"]
[BlackClock "0:00:05"]
[Board "126"]

1. e4 {[%clk 0:02:56]}  e5 {[%clk 0:02:59]} 2. Nc3 {[%clk 0:02:54]}  Bc5 {[%clk 0:02:55]} 3. f4 {[%clk 0:02:52]}  d6 {[%clk 0:02:54]} 4. Nf3 {[%clk 0:02:52]}  Nc6 {[%clk 0:02:52]} 5. Bb5 {[%clk 0:02:48]}  Bd7 {[%clk 0:02:42]} 6. Bxc6 {[%clk 0:02:37]}  Bxc6 {[%clk 0:02:41]} 7. fxe5 {[%clk 0:02:37]}  dxe5 {[%clk 0:02:40]} 8. Nxe5 {[%clk 0:02:36]}  Qd4 {[%clk 0:02:10]} 9. Nd3 {[%clk 0:02:36]}  Bb6 {[%clk 0:01:49]} 10. Qe2 {[%clk 0:02:15]}  Nf6 {[%clk 0:01:31]} 11. b3 {[%clk 0:02:14]}  O-O {[%clk 0:01:20]} 12. Bb2 {[%clk 0:02:14]}  Nxe4 {[%clk 0:01:05]} 13. O-O-O {[%clk 0:01:53]}  Rfe8 {[%clk 0:01:04]} 14. Na4 {[%clk 0:01:16]}  Qd6 {[%clk 0:00:58]} 15. Qg4 {[%clk 0:01:08]}  Bd4 {[%clk 0:00:53]} 16. Nc3 {[%clk 0:01:01]}  Nf6 {[%clk 0:00:37]} 17. Qh4 {[%clk 0:00:59]}  a5 {[%clk 0:00:35]} 18. Rhf1 {[%clk 0:00:55]}  a4 {[%clk 0:00:33]} 19. Kb1 {[%clk 0:00:54]}  axb3 {[%clk 0:00:32]} 20. axb3 {[%clk 0:00:54]}  Bxg2 {[%clk 0:00:27]} 21. Rg1 {[%clk 0:00:50]}  Bxg1 {[%clk 0:00:25]} 22. Rxg1 {[%clk 0:00:51]}  Qc6 {[%clk 0:00:17]} 23. Nf4 {[%clk 0:00:41]}  Be4 {[%clk 0:00:13]} 24. Nxe4 {[%clk 0:00:37]}  Rxe4 {[%clk 0:00:13]} 25. Rxg7+ {[%clk 0:00:33]}  Kxg7 {[%clk 0:00:11]} 26. Bxf6+ {[%clk 0:00:23]}  Kf8 {[%clk 0:00:11]} 27. Qh6+ {[%clk 0:00:20]}  Ke8 {[%clk 0:00:12]} 28. Qg7 {[%clk 0:00:15]}  Re1+ {[%clk 0:00:08]} 29. Kb2 {[%clk 0:00:15]}  Ra2+ {[%clk 0:00:03]} 30. Kxa2 {[%clk 0:00:13]}  Qa6+ {[%clk 0:00:04]} 31. Kb2 {[%clk 0:00:10]}  Qa1# {[%clk 0:00:05]} 0-1


[Site "https://www.chess.com"]